[Event "GER-ch Youth-U10 2022"]
[Site "Willingen"]
[Date "2022.06.05"]
[Round "1.9"]
[White "Junge, Mattheo Gabriel"]
[Black "Van 't Hof, Eric"]
[Result "1-0"]
[ECO "C58"]
[WhiteElo "1132"]
[BlackElo "2081"]
[Annotator "TA"]
[PlyCount "106"]
[EventDate "2022.06.05"]
[EventType "swiss"]
[EventRounds "11"]
[EventCountry "GER"]
[SourceTitle "playchess.com"]
[Source "ChessBase"]
[SourceQuality "1"]
[TimeControl "40/4500+30:900+30"]

{[%evp 15,106,12,74,88,116,69,65,68,66,72,75,3,13,-80,17,-77,-75,-78,-66,-68,-77,-73,0,-48,-52,-64,-16,-10,-15,-15,-13,-13,-13,-33,-6,-16,-6,-27,-34,-32,-6,-25,-10,-13,54,0,52,6,5,0,0,0,0,0,25,9,62,37,100,90,96,84,106,31,37,26,143,128,149,141,142,84,228,240,267,246,239,180,167,174,241,232,242,227,248,266,389,394,5812,5783,2273,2755,29963]} 1. e4 {[%emt 0:00:03]} e5 {[%emt 0:00:08]} 2. Nf3 {[%emt 0:00:04]} Nc6 {[%emt 0:00:10]} 3. Bc4 {[%emt 0:00:08]} Nf6 {[%emt 0:00:11]} 4. Ng5 {[%emt 0:00:55]} d5 {[%emt 0:00:12]} 5. exd5 {[%emt 0:00:36]} Na5 {[%emt 0:00:13]} 6. Bb5+ {[%emt 0:00:41]} c6 {[%emt 0:00:13]} 7. dxc6 {[%emt 0:00:27]} bxc6 {[%emt 0:00:15]} 8. Qf3 {[%emt 0:03:01] Recently 8.Bd3 got a lot of attention.} Bb7 {[%emt 0:08:50]} (8... Be7 $11) 9. Ba4 $16 {[%emt 0:01:22] C58: Two Knights: 4 Ng5 d5 5 exd5 Na5 sidelines.} Qd4 {[%emt 0:02:28]} (9... Bd6) 10. Bb3 {[%emt 0:03:00]} (10. Nc3 $16) 10... Nxb3 $14 {[%emt 0:01:26]} (10... Nc4 $2 11. c3 (11. d3 Nd6 $16) 11... Qd5 12. d3 Qxf3 13. Nxf3 $18) 11. Qxb3 {[%emt 0:00:24] White is slightly better.} Qd7 {[%emt 0:00:32]} 12. O-O {[%emt 0:00:23][%cal Od2d4] aiming for d4!} Bd6 {[%emt 0:01:12] [#]} 13. d4 $146 {[%emt 0:02:32]} (13. Nc3 $16) ({Predecessor:} 13. Nc3 O-O 14. Nge4 Nxe4 15. Nxe4 Be7 16. d3 Kh8 17. Qc3 Qd5 18. f3 f5 19. Nd2 {1-0 (72) Demchenko,S (2063)-Mahdjoubi,A (1918) Gatineau 2016}) 13... O-O $11 {[%emt 0:01:16]} 14. Be3 {[%emt 0:02:37]} (14. dxe5 $11 {remains equal.} Bxe5 15. Nf3) 14... Rab8 {[%emt 0:01:40]} (14... Ba6 15. Rd1 Qf5) (14... Ba6 $17 {Threatens to win with ...Rab8.} 15. Rd1 e4) 15. Qd3 {[%emt 0:04:57] [#]} (15. dxe5 $11 Bxe5 16. Nf3) 15... e4 $1 $17 {[%emt 0:04:06]} 16. Nxe4 {[%emt 0:07:11]} Nxe4 {[%emt 0:00:21]} 17. Qxe4 {[%emt 0:01:26]} c5 $1 {[%emt 0:01:00]} 18. Qh4 {[%emt 0:02:54]} Be7 {[%emt 0:01:55] A strong pair of Bishops.} ({Much worse is} 18... Qc6 $6 19. f3 $11) (18... cxd4 $17 19. Bxd4 Be7) 19. Qh3 {[%emt 0:02:43]} (19. Qg3 $11) 19... Qxh3 $15 {[%emt 0:00:25]} 20. gxh3 {[%emt 0:00:28]} Bf6 {[%emt 0:00:28]} (20... Rbd8 $1 $15 {might be stronger.}) 21. c3 $1 $11 {[%emt 0:01:36]} cxd4 {[%emt 0:00:19]} 22. Bxd4 {[%emt 0:01:00]} Bxd4 {[%emt 0:00:20]} 23. cxd4 {[%emt 0:00:07]} Bc8 {[%emt 0:00:33][%csl LRb2,LRh3]} 24. b3 {[%emt 0:01:19]} Bxh3 {[%emt 0:00:13] [#] Strongly threatening ...Rb6.} 25. Rd1 {[%emt 0:01:04]} Rfd8 {[%emt 0:00:38][%mdl 1024] Black has compensation.} 26. Na3 {[%emt 0:07:29]} Rb6 {[%emt 0:02:25]} 27. Rd3 {[%emt 0:06:35]} Bf5 {[%emt 0:00:47]} 28. Re3 {[%emt 0:00:53]} h6 {[%emt 0:01:23]} 29. Rd1 {[%emt 0:01:58]} Bg4 {[%emt 0:01:16]} (29... Rg6+ $11 30. Kf1 Ra6) 30. f3 {[%emt 0:00:48]} (30. Rd2 $1 $14) 30... Bf5 {[%emt 0:00:49]} ({Better is} 30... Bh3 $11) 31. Nc4 {[%emt 0:00:36]} (31. Rd2 $14 {was preferrable.}) 31... Rg6+ {[%emt 0:00:38]} 32. Kh1 {[%emt 0:05:39]} Be6 {[%emt 0:00:57]} 33. Red3 {[%emt 0:02:12]} Bd5 {[%emt 0:00:54]} 34. Ne5 {[%emt 0:00:29]} Re6 {[%emt 0:00:31]} 35. R1d2 {[%emt 0:00:30]} Bb7 {[%emt 0:00:44]} (35... h5 $11) 36. Nc4 {[%emt 0:00:25]} Rg6 {[%emt 0:00:22]} (36... Rf6 $14) 37. d5 $16 {[%emt 0:00:29]} Rg5 {[%emt 0:01:06][%cal Rg5d5]} 38. Ne3 {[%emt 0:00:27]} Kf8 {[%emt 0:01:50]} 39. Rd4 {[%emt 0:02:49]} (39. f4 $16 Rg6 40. f5) 39... Re5 $14 {[%emt 0:00:48]} 40. R2d3 {[%emt 0:02:41]} Rd7 {[%emt 0:01:31]} (40... Rde8 $1 $11 {keeps the balance.} 41. Nc4 Rg5) 41. Kg2 $16 {[%emt 0:15:31]} Ba6 {[%emt 0:15:38]} 42. Rc3 {[%emt 0:01:26]} Bb7 {[%emt 0:00:31]} 43. Re4 {[%emt 0:02:56] White is more active.} (43. Kf2 $142) 43... Rxe4 {[%emt 0:00:48] Loses the game.} (43... Rg5+ $16 44. Kf2 Rh5) 44. fxe4 {[%emt 0:00:07][%mdl 4096] Endgame KRB-KRN} g6 {[%emt 0:01:00]} 45. Ng4 {[%emt 0:01:36]} Kg7 {[%emt 0:00:27]} 46. Kf3 {[%emt 0:01:05]} f5 {[%emt 0:01:00]} 47. Ne3 {[%emt 0:00:17]} fxe4+ {[%emt 0:01:08]} (47... Kf6 $142 48. Kf4 g5+ 49. Kf3 h5) 48. Kxe4 $18 {[%emt 0:00:16] Black must now prevent Ke5.} Kf7 {[%emt 0:01:02]} 49. Rd3 {[%emt 0:01:23]} Re7+ {[%emt 0:00:43]} 50. Kd4 {[%emt 0:00:38]} h5 {[%emt 0:01:05]} (50... Bc8 {is a better defense.} 51. Rc3 Bd7) 51. Nc4 {[%emt 0:02:47]} Rd7 {[%emt 0:00:45] Inhibits Nd6+.} (51... Kg7 52. Ne5 Bc8) 52. Ne5+ {[%emt 0:00:08]} Ke7 {[%emt 0:00:30]} 53. Nxd7 {[%emt 0:00:07]} Ke8 {[%emt 0:00:50] Weighted Error Value: White=0.26 (precise) /Black=0.30} 1-0

[Event "GER-ch Youth-U10 2022"]
[Site "Willingen"]
[Date "2022.06.05"]
[Round "1.10"]
[White "Belin, Anton"]
[Black "Rodriguez Klasen, Ennio"]
[Result "1-0"]
[ECO "D00"]
[WhiteElo "1213"]
[BlackElo "1315"]
[Annotator "NA RC COMBH"]
[PlyCount "65"]
[EventDate "2022.06.05"]
[EventType "swiss"]
[EventRounds "11"]
[EventCountry "GER"]
[SourceTitle "playchess.com"]
[Source "ChessBase"]
[SourceQuality "1"]
[TimeControl "40/4500+30:900+30"]

1. d4 {[%emt 0:00:02]} Nf6 {[%emt 0:00:17]} 2. Nc3 {[%emt 0:00:11]} d5 {[%emt 0:03:22]} 3. Bf4 {[%emt 0:00:10]} Bf5 {[%emt 0:07:33]} 4. Nf3 {[%emt 0:00:39]} Nc6 {[%emt 0:01:59]} 5. e3 {[%emt 0:01:19]} a6 {[%emt 0:02:57]} 6. Ne5 {[%emt 0:01:45]} Ne4 {[%emt 0:15:10]} 7. Nxe4 {[%emt 0:01:58]} Nxe5 {[%emt 0:01:36]} 8. Ng3 {[%emt 0:00:38]} Be6 {[%emt 0:10:04]} 9. dxe5 {[%emt 0:00:55]} h6 {[%emt 0:05:17]} 10. h4 {[%emt 0:00:36]} c5 {[%emt 0:03:50]} 11. c3 {[%emt 0:01:35]} b5 {[%emt 0:01:51]} 12. a4 {[%emt 0:00:57]} c4 {[%emt 0:02:51]} 13. e4 {[%emt 0:00:24]} g6 {[%emt 0:02:27]} 14. exd5 {[%emt 0:00:21]} Bxd5 {[%emt 0:00:20]} 15. b3 {[%emt 0:00:57]} cxb3 {[%emt 0:06:00]} 16. axb5 {[%emt 0:00:27]} a5 {[%emt 0:07:23]} 17. b6 {[%emt 0:00:19]} e6 {[%emt 0:04:33]} 18. Bb5+ {[%emt 0:00:17]} Ke7 {[%emt 0:00:15]} 19. Qc1 {[%emt 0:00:12]} f5 {[%emt 0:02:21]} 20. exf6+ {[%emt 0:00:56]} Kf7 {[%emt 0:00:36]} 21. h5 {[%emt 0:00:19]} g5 {[%emt 0:00:52]} 22. Be5 {[%emt 0:00:40]} Bc5 {[%emt 0:02:09]} 23. Qb1 {[%emt 0:00:25]} Qg8 {[%emt 0:01:13]} 24. O-O {[%emt 0:00:47]} Bxb6 {[%emt 0:01:27]} 25. c4 {[%emt 0:00:21]} Bb7 {[%emt 0:00:31]} 26. Rd1 {[%emt 0:00:31]} Rd8 {[%emt 0:00:34]} 27. Rxd8 {[%emt 0:00:13]} Bxd8 {[%emt 0:00:12]} 28. Qd3 {[%emt 0:00:15]} Bc8 {[%emt 0:00:34]} 29. Rd1 {[%emt 0:00:06]} Bb6 {[%emt 0:01:06]} 30. Qd7+ {[%emt 0:02:02]} Bxd7 {[%emt 0:00:08]} 31. Rxd7+ {[%emt 0:00:10]} Ke8 {[%emt 0:00:33]} 32. Rb7+ {[%emt 0:00:09]} Kf8 {[%emt 0:00:54]} 33. Bd6# {[%emt 0:00:10]} 1-0

[Event "GER-ch Youth-U10 2022"]
[Site "Willingen"]
[Date "2022.06.05"]
[Round "1.11"]
[White "Fadeev, Justin Michael"]
[Black "Menke, Raphael Wilhelm"]
[Result "1-0"]
[ECO "C56"]
[WhiteElo "1320"]
[BlackElo "1212"]
[Annotator "NA RC COMBH"]
[PlyCount "151"]
[EventDate "2022.06.05"]
[EventType "swiss"]
[EventRounds "11"]
[EventCountry "GER"]
[SourceTitle "playchess.com"]
[Source "ChessBase"]
[SourceQuality "1"]
[TimeControl "40/4500+30:900+30"]

1. e4 {[%emt 0:00:02]} e5 {[%emt 0:00:01]} 2. Nf3 {[%emt 0:00:10]} Nc6 {[%emt 0:00:02]} 3. d4 {[%emt 0:00:13]} exd4 {[%emt 0:00:08]} 4. Bc4 {[%emt 0:00:18]} Nf6 {[%emt 0:00:09]} 5. e5 {[%emt 0:00:57]} d5 {[%emt 0:00:09]} 6. Bb5 {[%emt 0:01:06]} Nd7 {[%emt 0:00:11]} 7. O-O {[%emt 0:02:37]} Be7 {[%emt 0:00:22]} 8. Bxc6 {[%emt 0:00:34]} bxc6 {[%emt 0:00:05]} 9. Qxd4 {[%emt 0:05:38]} Bc5 {[%emt 0:05:53]} 10. Qa4 {[%emt 0:02:55]} Bb7 {[%emt 0:00:56]} 11. Qg4 {[%emt 0:03:35]} Qe7 {[%emt 0:06:18]} 12. Qxg7 {[%emt 0:01:51]} O-O-O {[%emt 0:01:15]} 13. Bg5 {[%emt 0:00:07]} Qf8 {[%emt 0:00:40]} 14. Qxf8 {[%emt 0:02:18]} Rdxf8 {[%emt 0:00:06]} 15. Nc3 {[%emt 0:03:15]} Rhg8 {[%emt 0:02:09]} 16. Na4 {[%emt 0:03:53]} Bb6 {[%emt 0:00:59]} 17. Bh6 {[%emt 0:02:25]} Re8 {[%emt 0:00:33]} 18. Rfe1 {[%emt 0:00:46]} Rg6 {[%emt 0:02:27]} 19. Bd2 {[%emt 0:02:29]} Reg8 {[%emt 0:00:33]} 20. g3 {[%emt 0:00:27]} Nc5 {[%emt 0:18:37]} 21. Nxc5 {[%emt 0:02:10]} Bxc5 {[%emt 0:00:06]} 22. b4 {[%emt 0:01:23]} Be7 {[%emt 0:01:10]} 23. a4 {[%emt 0:00:30]} a6 {[%emt 0:00:35]} 24. Nd4 {[%emt 0:06:10]} Kd7 {[%emt 0:03:22]} 25. f4 {[%emt 0:02:08]} Rg4 {[%emt 0:01:10]} 26. Be3 {[%emt 0:01:32]} Bxb4 {[%emt 0:02:06]} 27. Reb1 {[%emt 0:01:26]} a5 {[%emt 0:01:37]} 28. Rb3 {[%emt 0:02:31]} Ba6 {[%emt 0:01:52]} 29. Nf5 {[%emt 0:02:03]} R4g6 {[%emt 0:00:31]} 30. Rbb1 {[%emt 0:03:39]} c5 {[%emt 0:06:00]} 31. Rd1 {[%emt 0:01:55]} Ke6 {[%emt 0:01:04]} 32. Nh6 {[%emt 0:03:35]} Rxh6 {[%emt 0:02:44]} 33. f5+ {[%emt 0:00:08]} Kxf5 {[%emt 0:00:23]} 34. Bxh6 {[%emt 0:00:08]} Kxe5 {[%emt 0:00:20]} 35. Bf4+ {[%emt 0:00:41]} Ke6 {[%emt 0:00:29]} 36. Bxc7 {[%emt 0:01:21]} Bb7 {[%emt 0:01:47]} 37. Bf4 {[%emt 0:02:00]} c4 {[%emt 0:00:36]} 38. Be3 {[%emt 0:03:19]} Bc6 {[%emt 0:01:13]} 39. Bd4 {[%emt 0:00:38]} Rg4 {[%emt 0:04:40]} 40. c3 {[%emt 0:00:48]} Be7 {[%emt 0:01:12]} 41. Re1+ {[%emt 0:16:02]} Kd7 {[%emt 0:15:17]} 42. Rf1 {[%emt 0:02:03]} Ke8 {[%emt 0:01:25]} 43. Rab1 {[%emt 0:02:20]} Bxa4 {[%emt 0:10:07]} 44. Rb8+ {[%emt 0:02:20]} Kd7 {[%emt 0:00:30]} 45. Bb6 {[%emt 0:00:39]} Ke6 {[%emt 0:00:40]} 46. Bxa5 {[%emt 0:01:00]} Bc6 {[%emt 0:00:59]} 47. Bb6 {[%emt 0:02:22]} h5 {[%emt 0:01:16]} 48. Bd4 {[%emt 0:03:31]} h4 {[%emt 0:02:29]} 49. Rb6 {[%emt 0:00:14]} Kd6 {[%emt 0:00:44]} 50. Kg2 {[%emt 0:02:18]} hxg3 {[%emt 0:01:45]} 51. hxg3 {[%emt 0:00:18]} Rg8 {[%emt 0:01:33]} 52. Rxf7 {[%emt 0:00:35]} Bh4 {[%emt 0:00:49]} 53. Kh3 {[%emt 0:01:29]} Bd8 {[%emt 0:00:24]} 54. Ra6 {[%emt 0:00:36]} Rg6 {[%emt 0:00:24]} 55. Rh7 {[%emt 0:03:18]} Bg5 {[%emt 0:01:12]} 56. Rha7 {[%emt 0:02:25]} Bd8 {[%emt 0:00:24]} 57. Rxc6+ {[%emt 0:00:14]} Kxc6 {[%emt 0:00:32]} 58. Ra6+ {[%emt 0:00:13]} Kb7 {[%emt 0:00:12]} 59. Rxg6 {[%emt 0:00:16]} Bc7 {[%emt 0:00:12]} 60. Rg7 {[%emt 0:00:29]} Kc6 {[%emt 0:00:15]} 61. g4 {[%emt 0:00:30]} Bf4 {[%emt 0:00:30]} 62. g5 {[%emt 0:00:07]} Bxg5 {[%emt 0:00:17]} 63. Rxg5 {[%emt 0:00:10]} Kd6 {[%emt 0:00:11]} 64. Rg6+ {[%emt 0:00:08]} Ke7 {[%emt 0:00:06]} 65. Kg4 {[%emt 0:00:09]} Kf7 {[%emt 0:00:01]} 66. Kf5 {[%emt 0:00:12]} Ke7 {[%emt 0:00:35]} 67. Ke5 {[%emt 0:00:10]} Kd7 {[%emt 0:00:05]} 68. Rh6 {[%emt 0:00:18]} Kc7 {[%emt 0:00:11]} 69. Kxd5 {[%emt 0:00:07]} Kb7 {[%emt 0:00:12]} 70. Kc5 {[%emt 0:00:10]} Ka7 {[%emt 0:00:14]} 71. Kb5+ {[%emt 0:00:14]} Kb7 {[%emt 0:00:22]} 72. Rh7+ {[%emt 0:00:04]} Kc8 {[%emt 0:00:16]} 73. Bf6 {[%emt 0:00:11]} Kb8 {[%emt 0:00:12]} 74. Kc6 {[%emt 0:00:12]} Ka8 {[%emt 0:00:09]} 75. Kb6 {[%emt 0:00:21]} Kb8 {[%emt 0:00:01]} 76. Rh8# {[%emt 0:00:07]} 1-0

[Event "GER-ch Youth-U10 2022"]
[Site "Willingen"]
[Date "2022.06.05"]
[Round "1.12"]
[White "Li, Joshua"]
[Black "Bundan, Edward"]
[Result "1/2-1/2"]
[ECO "B48"]
[WhiteElo "1599"]
[BlackElo "1240"]
[Annotator "NA RC COMBH"]
[PlyCount "186"]
[EventDate "2022.06.05"]
[EventType "swiss"]
[EventRounds "11"]
[EventCountry "GER"]
[SourceTitle "playchess.com"]
[Source "ChessBase"]
[SourceQuality "1"]
[TimeControl "40/4500+30:900+30"]

1. e4 {[%emt 0:00:10]} c5 {[%emt 0:00:12]} 2. Nf3 {[%emt 0:00:22]} e6 {[%emt 0:00:12]} 3. d4 {[%emt 0:01:30]} cxd4 {[%emt 0:00:06]} 4. Nxd4 {[%emt 0:00:07]} Nc6 {[%emt 0:00:44]} 5. Be3 {[%emt 0:01:09]} Qc7 {[%emt 0:00:39]} 6. Nc3 {[%emt 0:02:57]} Nf6 {[%emt 0:00:32]} 7. Ncb5 {[%emt 0:01:07]} Qb8 {[%emt 0:01:22]} 8. Nc3 {[%emt 0:16:13]} Bb4 {[%emt 0:01:41]} 9. Nxc6 {[%emt 0:12:00]} bxc6 {[%emt 0:01:25]} 10. Bd2 {[%emt 0:03:21]} O-O {[%emt 0:04:07]} 11. Bd3 {[%emt 0:02:24]} d5 {[%emt 0:04:42]} 12. O-O {[%emt 0:02:42]} Bd6 {[%emt 0:20:10]} 13. f4 {[%emt 0:01:04]} dxe4 {[%emt 0:08:41]} 14. Nxe4 {[%emt 0:01:42]} Nxe4 {[%emt 0:01:39]} 15. Bxe4 {[%emt 0:01:00]} Qxb2 {[%emt 0:02:13]} 16. Kh1 {[%emt 0:07:03]} Qb6 {[%emt 0:07:14]} 17. Rf3 {[%emt 0:01:17]} f5 {[%emt 0:00:58]} 18. Bc3 {[%emt 0:04:39]} Be7 {[%emt 0:07:08]} 19. Rg3 {[%emt 0:04:01]} Bf6 {[%emt 0:00:52]} 20. Bxf6 {[%emt 0:01:13]} Rxf6 {[%emt 0:00:30]} 21. Bf3 {[%emt 0:00:37]} Qc7 {[%emt 0:03:01]} 22. Qd3 {[%emt 0:00:53]} Bb7 {[%emt 0:01:05]} 23. Rb1 {[%emt 0:00:37]} Rff8 {[%emt 0:01:14]} 24. Qc4 {[%emt 0:00:33]} Rfe8 {[%emt 0:00:50]} 25. h3 {[%emt 0:00:56]} Rac8 {[%emt 0:01:01]} 26. Qd4 {[%emt 0:01:03]} Ra8 {[%emt 0:02:10]} 27. Rxb7 {[%emt 0:00:40]} Qxb7 {[%emt 0:01:20]} 28. Bxc6 {[%emt 0:00:10]} Qe7 {[%emt 0:04:16]} 29. Bxa8 {[%emt 0:00:48]} Rxa8 {[%emt 0:00:11]} 30. c4 {[%emt 0:00:23]} Rd8 {[%emt 0:00:45]} 31. Qb2 {[%emt 0:00:25]} g6 {[%emt 0:00:38]} 32. Qb5 {[%emt 0:00:21]} Qc7 {[%emt 0:01:03]} 33. Rf3 {[%emt 0:01:09]} Rc8 {[%emt 0:01:33]} 34. Qa4 {[%emt 0:00:51]} Rb8 {[%emt 0:02:50]} 35. Qa6 {[%emt 0:00:36]} Rb6 {[%emt 0:00:34]} 36. Qa4 {[%emt 0:01:03]} Rc6 {[%emt 0:01:34]} 37. Rd3 {[%emt 0:00:32]} a6 {[%emt 0:02:27]} 38. Rd4 {[%emt 0:02:24]} Qb7 {[%emt 0:01:25]} 39. a3 {[%emt 0:00:00]} Qb6 {[%emt 0:00:37]} 40. Rd8+ {[%emt 0:00:20]} Kf7 {[%emt 0:01:07]} 41. Rd7+ {[%emt 0:15:32]} Kg8 {[%emt 0:15:28]} 42. Qc2 {[%emt 0:02:03]} Qb8 {[%emt 0:00:00]} 43. Qd2 {[%emt 0:00:00]} Qb1+ {[%emt 0:00:00]} 44. Kh2 {[%emt 0:00:00]} Qe4 {[%emt 0:00:00]} 45. Rc7 {[%emt 0:00:00]} Rxc7 {[%emt 0:00:00]} 46. Qd8+ {[%emt 0:00:00]} Kg7 {[%emt 0:00:00]} 47. Qxc7+ {[%emt 0:00:00]} Kg8 {[%emt 0:00:00]} 48. c5 {[%emt 0:00:00]} h6 {[%emt 0:00:21]} 49. c6 {[%emt 0:00:00]} g5 {[%emt 0:00:18]} 50. fxg5 {[%emt 0:00:00]} hxg5 {[%emt 0:00:16]} 51. Qd8+ {[%emt 0:00:00]} Kh7 {[%emt 0:00:36]} 52. Qd6 {[%emt 0:00:00]} e5 {[%emt 0:00:51]} 53. Qe7+ {[%emt 0:00:00]} Kh6 {[%emt 0:00:41]} 54. Qf8+ {[%emt 0:00:53]} Kh7 {[%emt 0:00:30]} 55. Qc5 {[%emt 0:01:07]} Qf4+ {[%emt 0:00:38]} 56. Kg1 {[%emt 0:00:36]} e4 {[%emt 0:01:02]} 57. c7 {[%emt 0:02:22]} e3 {[%emt 0:01:01]} 58. Qc2 {[%emt 0:00:12]} Qd4 {[%emt 0:00:46]} 59. Qxf5+ {[%emt 0:02:27]} Kh6 {[%emt 0:00:22]} 60. Kh2 {[%emt 0:01:14]} Qd6+ {[%emt 0:00:19]} 61. Kh1 {[%emt 0:01:21]} Qxc7 {[%emt 0:00:13]} 62. Qe6+ {[%emt 0:00:19]} Kg7 {[%emt 0:00:31]} 63. Qxe3 {[%emt 0:00:13]} Kf6 {[%emt 0:00:26]} 64. Qd4+ {[%emt 0:00:29]} Kg6 {[%emt 0:00:20]} 65. Qd3+ {[%emt 0:00:22]} Kg7 {[%emt 0:00:23]} 66. Qxa6 {[%emt 0:00:06]} Qc1+ {[%emt 0:00:15]} 67. Kh2 {[%emt 0:00:13]} Qf4+ {[%emt 0:00:06]} 68. Kg1 {[%emt 0:00:42]} Qc1+ {[%emt 0:00:24]} 69. Qf1 {[%emt 0:00:12]} Qxa3 {[%emt 0:00:12]} 70. Qd1 {[%emt 0:01:12]} Qc5+ {[%emt 0:00:14]} 71. Kh1 {[%emt 0:00:14]} Qe3 {[%emt 0:00:41]} 72. Qg4 {[%emt 0:01:11]} Qe1+ {[%emt 0:00:16]} 73. Kh2 {[%emt 0:00:13]} Qe5+ {[%emt 0:00:13]} 74. Qg3 {[%emt 0:00:05]} Qc5 {[%emt 0:01:19]} 75. h4 {[%emt 0:00:04]} Qc2 {[%emt 0:00:37]} 76. Qxg5+ {[%emt 0:00:53]} Kh7 {[%emt 0:01:24]} 77. Kh3 {[%emt 0:01:02]} Qd3+ {[%emt 0:00:15]} 78. g3 {[%emt 0:00:29]} Qf1+ {[%emt 0:00:18]} 79. Kg4 {[%emt 0:00:41]} Qe2+ {[%emt 0:00:14]} 80. Kf5 {[%emt 0:00:35]} Qd3+ {[%emt 0:00:25]} 81. Kf6 {[%emt 0:00:16]} Qd6+ {[%emt 0:00:16]} 82. Kf7 {[%emt 0:00:23]} Qd7+ {[%emt 0:01:02]} 83. Qe7 {[%emt 0:00:24]} Qg4 {[%emt 0:01:52]} 84. Kf6+ {[%emt 0:01:17]} Kh6 {[%emt 0:00:53]} 85. Qe3+ {[%emt 0:00:53]} Kh7 {[%emt 0:00:35]} 86. Qg5 {[%emt 0:00:20]} Qd4+ {[%emt 0:00:13]} 87. Kf7 {[%emt 0:00:21]} Qc4+ {[%emt 0:00:18]} 88. Ke8 {[%emt 0:00:23]} Qc8+ {[%emt 0:01:05]} 89. Qd8 {[%emt 0:00:16]} Qc2 {[%emt 0:00:34]} 90. Qe7+ {[%emt 0:00:34]} Kh8 {[%emt 0:00:21]} 91. Kf8 {[%emt 0:03:24]} Qc8+ {[%emt 0:00:41]} 92. Kf7 {[%emt 0:00:24]} Qg8+ {[%emt 0:00:29]} 93. Kf6 {[%emt 0:01:24]} Qxg3 {[%emt 0:00:14]} 1/2-1/2

[Event "GER-ch Youth-U10 2022"]
[Site "Willingen"]
[Date "2022.06.05"]
[Round "1.13"]
[White "Teng, David"]
[Black "Fischer, Quirin"]
[Result "1/2-1/2"]
[ECO "B38"]
[WhiteElo "1423"]
[BlackElo "1195"]
[Annotator "NA RC COMBH"]
[PlyCount "118"]
[EventDate "2022.06.05"]
[EventType "swiss"]
[EventRounds "11"]
[EventCountry "GER"]
[SourceTitle "playchess.com"]
[Source "ChessBase"]
[SourceQuality "1"]
[TimeControl "40/4500+30:900+30"]

1. e4 {[%emt 0:00:01]} c5 {[%emt 0:00:06]} 2. Nf3 {[%emt 0:00:09]} Nc6 {[%emt 0:00:06]} 3. d4 {[%emt 0:00:10]} cxd4 {[%emt 0:00:08]} 4. Nxd4 {[%emt 0:00:13]} g6 {[%emt 0:00:15]} 5. c4 {[%emt 0:00:25]} Bg7 {[%emt 0:00:10]} 6. Be3 {[%emt 0:00:23]} Nf6 {[%emt 0:00:19]} 7. Nc3 {[%emt 0:00:56]} O-O {[%emt 0:00:11]} 8. Be2 {[%emt 0:01:15]} Nxd4 {[%emt 0:03:15]} 9. Bxd4 {[%emt 0:01:01]} b6 {[%emt 0:00:34]} 10. O-O {[%emt 0:05:38]} Bb7 {[%emt 0:01:10]} 11. f3 {[%emt 0:02:06]} Rc8 {[%emt 0:02:50]} 12. Qd2 {[%emt 0:04:35]} Ba6 {[%emt 0:02:19]} 13. b3 {[%emt 0:02:56]} Qc7 {[%emt 0:03:57]} 14. Rac1 {[%emt 0:02:34]} e5 {[%emt 0:00:55]} 15. Nd5 {[%emt 0:04:11]} Nxd5 {[%emt 0:02:10]} 16. cxd5 {[%emt 0:00:41]} Qb7 {[%emt 0:01:41]} 17. Bc3 {[%emt 0:04:03]} d6 {[%emt 0:03:08]} 18. Bxa6 {[%emt 0:01:07]} Qxa6 {[%emt 0:00:13]} 19. Bb4 {[%emt 0:00:30]} b5 {[%emt 0:03:28]} 20. Qb2 {[%emt 0:04:19]} Qb6+ {[%emt 0:01:37]} 21. Qf2 {[%emt 0:01:17]} Qxf2+ {[%emt 0:03:06]} 22. Kxf2 {[%emt 0:01:06]} Bh6 {[%emt 0:02:07]} 23. Rxc8 {[%emt 0:06:22]} Rxc8 {[%emt 0:01:41]} 24. Bxd6 {[%emt 0:01:21]} Rc2+ {[%emt 0:00:36]} 25. Kg3 {[%emt 0:00:36]} Bf4+ {[%emt 0:00:30]} 26. Kh3 {[%emt 0:01:18]} Rxa2 {[%emt 0:01:18]} 27. g3 {[%emt 0:00:35]} Be3 {[%emt 0:00:11]} 28. Bxe5 {[%emt 0:01:32]} Ra3 {[%emt 0:01:31]} 29. Rd1 {[%emt 0:02:43]} Bb6 {[%emt 0:00:29]} 30. Rd3 {[%emt 0:05:54]} a5 {[%emt 0:00:14]} 31. Bd6 {[%emt 0:04:29]} b4 {[%emt 0:00:41]} 32. Kg4 {[%emt 0:01:49]} h6 {[%emt 0:03:01]} 33. Kf4 {[%emt 0:03:36]} a4 {[%emt 0:00:29]} 34. Bxb4 {[%emt 0:01:22]} Rxb3 {[%emt 0:00:56]} 35. Rxb3 {[%emt 0:00:37]} axb3 {[%emt 0:00:40]} 36. Bc3 {[%emt 0:00:44]} Kf8 {[%emt 0:00:12]} 37. Ke5 {[%emt 0:01:15]} Ba5 {[%emt 0:00:26]} 38. Bb2 {[%emt 0:00:39]} Bc7+ {[%emt 0:01:01]} 39. d6 {[%emt 0:00:37]} Bd8 {[%emt 0:00:08]} 40. Kd5 {[%emt 0:00:13]} Ke8 {[%emt 0:01:17]} 41. Kc4 {[%emt 0:15:52]} Kd7 {[%emt 0:15:05]} 42. e5 {[%emt 0:00:10]} f6 {[%emt 0:00:13]} 43. f4 {[%emt 0:01:35]} Bb6 {[%emt 0:00:06]} 44. Kxb3 {[%emt 0:01:42]} Bg1 {[%emt 0:00:56]} 45. Bc3 {[%emt 0:01:12]} Bxh2 {[%emt 0:00:31]} 46. Be1 {[%emt 0:00:09]} h5 {[%emt 0:00:26]} 47. Kc4 {[%emt 0:01:39]} h4 {[%emt 0:00:20]} 48. Kd5 {[%emt 0:02:00]} fxe5 {[%emt 0:00:06]} 49. fxe5 {[%emt 0:00:26]} Bxg3 {[%emt 0:00:10]} 50. e6+ {[%emt 0:00:05]} Kd8 {[%emt 0:00:12]} 51. Bd2 {[%emt 0:01:04]} Bxd6 {[%emt 0:00:33]} 52. Kxd6 {[%emt 0:00:05]} h3 {[%emt 0:00:12]} 53. Bf4 {[%emt 0:00:02]} Ke8 {[%emt 0:00:05]} 54. e7 {[%emt 0:00:04]} g5 {[%emt 0:01:41]} 55. Bh2 {[%emt 0:00:05]} g4 {[%emt 0:00:19]} 56. Bg3 {[%emt 0:00:05]} h2 {[%emt 0:00:25]} 57. Bxh2 {[%emt 0:00:05]} g3 {[%emt 0:00:04]} 58. Bxg3 {[%emt 0:00:03]} Kf7 {[%emt 0:00:08]} 59. e8=Q+ {[%emt 0:01:19]} Kxe8 {[%emt 0:00:22]} 1/2-1/2